bitfinex-derivatives/quotes_BTCF0:USTF0_20250620
["timestamp","ask_amount","ask_price","bid_price","bid_amount"]
[1750442241227,0.1941204,103020.0,103010.0,0.58256]
[1750442241427,0.4040204,103020.0,103010.0,0.7766992]
[1750442241633,0.4040204,103020.0,103010.0,1.38068099]
[1750442241826,0.3586169,103030.0,103020.0,0.1941204]
[1750442242026,0.3586169,103030.0,103020.0,1.15850219]
[1750442242027,0.5700169,103030.0,103020.0,1.15850219]
[1750442242227,0.5700169,103030.0,103020.0,1.58514219]
[1750442242438,0.5700169,103030.0,103020.0,1.94594219]
[1750442243333,0.5700169,103030.0,103020.0,1.3423604]
[1750442243837,0.5710169,103030.0,103020.0,1.3423604]
[1750442244541,0.5224733,103030.0,103020.0,1.3423604]
[1750442244934,0.2285719,103030.0,103020.0,1.94594219]
[1750442245133,0.2112733,103030.0,103020.0,2.05294219]
[1750442245335,0.2112733,103030.0,103020.0,0.5549204]
[1750442245541,0.4206733,103030.0,103020.0,2.16726219]
[1750442245840,0.1204719,103030.0,103020.0,2.38216219]
[1750442246139,0.0171719,103030.0,103020.0,2.44256219]
[1750442248143,0.0171719,103030.0,103020.0,2.54226219]
[1750442248844,0.0171719,103030.0,103020.0,2.54154219]
[1750442249239,0.0171719,103030.0,103020.0,2.54114219]
[1750442249437,0.2112734,103030.0,103020.0,2.54154219]
[1750442249636,0.2112734,103030.0,103020.0,2.54142219]
[1750442249637,0.3172734,103030.0,103020.0,2.54142219]
[1750442249935,0.4188734,103030.0,103020.0,2.33382219]
[1750442250137,0.4188734,103030.0,103020.0,2.22670219]
[1750442250339,0.1231719,103030.0,103020.0,2.22670219]
[1750442250538,0.0171719,103030.0,103020.0,2.43900219]
[1750442250733,0.2112734,103030.0,103020.0,1.32630219]
[1750442250938,0.4188734,103030.0,103020.0,1.21890219]
[1750442251142,0.4188734,103030.0,103020.0,2.22658219]
[1750442251337,0.2247719,103030.0,103020.0,1.21890219]
[1750442251538,0.4188734,103030.0,103020.0,2.32616219]
[1750442251734,0.4188734,103030.0,103020.0,2.32576219]
[1750442252043,0.4188734,103030.0,103020.0,2.32616219]
[1750442252346,0.4188734,103030.0,103020.0,1.6228804]
[1750442252539,0.5245734,103030.0,103020.0,1.6228804]
[1750442252737,0.5245734,103030.0,103020.0,1.6224804]
[1750442252941,0.5245734,103030.0,103020.0,1.6228804]
[1750442255539,0.5245734,103030.0,103020.0,0.6153204]
[1750442255844,0.5245734,103030.0,103020.0,1.6224004]
[1750442256045,0.52874747,103030.0,103020.0,1.6224004]
[1750442256444,0.52874747,103030.0,103020.0,1.61269189]
[1750442257439,0.88954747,103030.0,103020.0,1.2013604]
[1750442257649,1.49312926,103030.0,103020.0,0.1941204]
[1750442257841,1.49312926,103030.0,103020.0,0.1945204]
[1750442258042,0.52874747,103030.0,103020.0,0.79810219]
[1750442258246,0.52874747,103030.0,103020.0,1.15890219]
[1750442258447,0.52874747,103030.0,103020.0,0.1945204]
[1750442259445,0.52874747,103030.0,103020.0,0.5553204]
[1750442259655,0.02134597,103030.0,103020.0,1.14627749]
[1750442259954,0.02134597,103030.0,103020.0,1.44047749]
[1750442260657,0.02134597,103030.0,103020.0,1.82047749]
[1750442260839,0.02134597,103030.0,103020.0,1.44047749]
[1750442262447,0.02134597,103030.0,103020.0,1.77047749]
[1750442264055,0.02134597,103030.0,103020.0,2.77355749]
[1750442264354,0.00347804,103030.0,103020.0,2.8122746]
[1750442264558,4e-08,103030.0,103020.0,2.8122746]
[1750442264759,4e-08,103030.0,103020.0,3.0064026]
[1750442266255,4e-08,103040.0,103030.0,0.1941015]
[1750442266452,4e-08,103040.0,103030.0,2.64842267]
[1750442267052,4e-08,103040.0,103030.0,3.65098267]
[1750442267762,4e-08,103040.0,103030.0,3.00867617]
[1750442267954,4e-08,103040.0,103030.0,3.65098267]
[1750442268259,4e-08,103040.0,103030.0,3.61225796]
[1750442268663,4e-08,103040.0,103030.0,4.65995175]
[1750442268858,4e-08,103040.0,103030.0,4.69867646]
[1750442269049,4e-08,103040.0,103030.0,4.22875646]
[1750442269250,4e-08,103040.0,103030.0,4.44807646]
[1750442269454,4e-08,103040.0,103030.0,4.44803646]
[1750442269653,0.01581247,103050.0,103040.0,0.1940827]
[1750442269854,0.01581247,103050.0,103040.0,2.39308192]
[1750442270057,0.001,103070.0,103060.0,0.194045]
[1750442270356,0.0002405,103070.0,103060.0,2.53851899]
[1750442270663,0.0002405,103070.0,103060.0,2.84201899]
[1750442271162,0.0002405,103070.0,103060.0,2.84389899]
[1750442272058,0.0583872,103100.0,103060.0,2.8303282]
[1750442272249,0.07652252,103120.0,103090.0,1.56796358]
[1750442272449,0.07651163,103150.0,103120.0,0.0484792]
[1750442272653,0.19,103150.0,103140.0,1.13341162]
[1750442272850,0.001,103160.0,103150.0,0.1938757]
[1750442273056,0.001,103160.0,103150.0,1.81948775]
[1750442273354,0.31409568,103190.0,103180.0,0.1938193]
[1750442273656,0.31409568,103190.0,103180.0,1.94004109]
[1750442273657,0.37146164,103190.0,103180.0,1.94004109]
[1750442274048,0.07416164,103190.0,103180.0,2.16128109]
[1750442274459,0.07416164,103190.0,103180.0,1.15820109]
[1750442274649,0.17176164,103190.0,103180.0,1.15820109]
[1750442274962,0.17176164,103190.0,103180.0,2.16724109]
[1750442275258,0.27816164,103190.0,103180.0,1.5637393]
[1750442275451,0.07416164,103190.0,103180.0,2.22792109]
[1750442275655,0.07416164,103190.0,103180.0,2.42932109]
[1750442275852,0.05836596,103190.0,103180.0,2.44497995]
[1750442276161,0.05836596,103190.0,103180.0,2.04139816]
[1750442276456,0.05836596,103190.0,103180.0,1.63525995]
[1750442276756,0.05836596,103190.0,103180.0,2.49717995]
[1750442277054,0.05836596,103190.0,103180.0,1.01485995]
[1750442277256,0.05836596,103190.0,103180.0,0.61964065]
[1750442277456,0.25536596,103190.0,103180.0,1.82657995]
[1750442277858,0.44916656,103190.0,103180.0,1.63236065]
[1750442278050,0.80996656,103190.0,103180.0,0.0066057]
[1750442278255,0.80996656,103190.0,103180.0,0.0062057]
[1750442278555,0.2907348,103180.0,103170.0,0.60438179]
[1750442278759,0.1938381,103170.0,103160.0,1.61982179]
[1750442278960,0.25122286,103160.0,103150.0,0.1946757]
[1750442279159,0.61202286,103160.0,103150.0,0.1938757]
[1750442279464,0.81357186,103160.0,103150.0,0.2042761]
[1750442279658,0.90997186,103160.0,103150.0,0.01]
[1750442279859,0.1938761,103150.0,103140.0,1.44383015]
[1750442280062,0.45544206,103150.0,103140.0,1.4859685]
[1750442280251,0.45544206,103150.0,103140.0,1.4851685]
[1750442280455,0.81624206,103150.0,103140.0,1.30980255]
[1750442280656,0.81624206,103150.0,103140.0,1.68662434]
[1750442280657,0.45544206,103150.0,103140.0,1.68662434]
[1750442280863,0.45544206,103150.0,103140.0,1.68702434]
[1750442281062,0.81624206,103150.0,103140.0,0.88954775]
[1750442281359,0.81624206,103150.0,103140.0,0.88914775]
[1750442281560,0.81624206,103150.0,103140.0,1.08304255]
[1750442281757,0.26156596,103150.0,103140.0,2.04742434]
[1750442281955,0.45544196,103150.0,103140.0,1.44424255]
[1750442282158,0.45544196,103150.0,103140.0,2.04782434]
[1750442282560,0.26156596,103150.0,103140.0,2.04782434]
[1750442282760,0.45544196,103150.0,103140.0,2.05782434]
[1750442282960,0.26156596,103150.0,103140.0,1.45424255]
[1750442283157,0.16196596,103150.0,103140.0,2.05782434]
[1750442283476,0.16196596,103150.0,103140.0,2.26142434]
[1750442284265,0.16196596,103150.0,103140.0,1.87784255]
[1750442284464,0.06154003,103150.0,103140.0,1.87784255]
[1750442284666,0.06154003,103150.0,103140.0,2.48142434]
[1750442284861,0.25541633,103150.0,103140.0,1.87784255]
[1750442285262,0.35211633,103150.0,103140.0,2.38052434]
[1750442285462,0.06154003,103150.0,103140.0,2.27782434]
[1750442285656,0.06154003,103150.0,103140.0,2.47852434]
[1750442286262,0.06154003,103150.0,103140.0,2.47952434]
[1750442289069,0.06154003,103150.0,103140.0,2.46361659]
[1750442289969,0.06154003,103150.0,103140.0,2.49614813]
[1750442290264,0.06154003,103150.0,103140.0,1.89256634]
[1750442290468,0.25541633,103150.0,103140.0,1.46186634]
[1750442290668,0.16604003,103150.0,103140.0,3.09460813]
[1750442290861,0.16604003,103150.0,103140.0,3.30420813]
[1750442291060,0.06154003,103150.0,103140.0,3.54340813]
[1750442291471,0.06154003,103150.0,103140.0,1.70186634]
[1750442291772,0.06154003,103150.0,103140.0,3.3627363]
[1750442291773,0.00417407,103150.0,103140.0,3.3627363]
[1750442291969,0.00417407,103150.0,103140.0,3.54356813]
[1750442292466,0.06154003,103150.0,103140.0,3.54356813]
[1750442292671,0.05736596,103150.0,103140.0,3.54356813]
[1750442293361,0.05736596,103150.0,103140.0,3.5723363]
[1750442293569,0.2422858,103180.0,103170.0,0.1938388]
[1750442293869,0.34564655,103180.0,103170.0,0.5546388]
[1750442294068,0.1938388,103170.0,103160.0,2.06995565]
[1750442294271,0.35570476,103170.0,103160.0,2.20239888]
[1750442295069,0.1938225,103180.0,103170.0,0.2422944]
[1750442295272,0.3882225,103180.0,103170.0,1.33603332]
[1750442295573,0.32824503,103180.0,103170.0,1.33603332]
[1750442295769,0.52206503,103180.0,103170.0,1.33803332]
[1750442295968,0.52206503,103180.0,103170.0,0.73445153]
[1750442296169,0.52406503,103180.0,103170.0,1.33803332]
[1750442296569,0.52406503,103180.0,103170.0,0.73445153]
[1750442296770,0.52406503,103180.0,103170.0,1.3289423]
[1750442297175,0.52406503,103180.0,103170.0,0.67690331]
[1750442297368,0.52406503,103180.0,103170.0,0.92995148]
[1750442299672,0.06354003,103180.0,103170.0,2.06941423]
[1750442299973,0.06354003,103180.0,103170.0,1.72959532]
[1750442300277,0.00617407,103180.0,103170.0,2.10941423]
[1750442300469,0.00617407,103180.0,103170.0,2.16738793]
[1750442300676,0.00617407,103180.0,103170.0,2.1287388]
[1750442301265,0.00617407,103180.0,103170.0,2.0707651]
[1750442301472,0.00617407,103180.0,103170.0,2.09100285]
[1750442301972,0.00417407,103180.0,103170.0,2.09100285]
[1750442302280,0.00517407,103180.0,103170.0,2.16830112]
[1750442302574,0.00517407,103180.0,103170.0,2.09100285]
[1750442302771,0.19899407,103180.0,103170.0,1.34714587]
[1750442302974,0.25636003,103180.0,103170.0,2.12198157]
[1750442303280,0.25636003,103180.0,103170.0,2.24750808]
[1750442303475,0.25636003,103180.0,103170.0,0.88303153]
[1750442303778,0.81226003,103180.0,103170.0,1.29907033]
[1750442303983,0.81226003,103180.0,103170.0,1.29947033]
[1750442304171,0.81226003,103180.0,103170.0,1.70921332]
[1750442304371,0.81226003,103180.0,103170.0,1.90305212]
[1750442304579,0.45146003,103180.0,103170.0,1.90305212]
[1750442304981,0.45146003,103180.0,103170.0,1.94166346]
[1750442305181,0.45146003,103180.0,103170.0,1.88375516]
[1750442305373,0.81226003,103180.0,103170.0,1.88375516]
[1750442305680,0.81226003,103180.0,103170.0,1.27977337]
[1750442305986,0.45146003,103180.0,103170.0,1.28017337]
[1750442306182,0.45146003,103180.0,103170.0,1.63745337]
[1750442306473,0.25636003,103180.0,103170.0,2.24103516]
[1750442306677,0.25636003,103180.0,103170.0,2.44583516]
[1750442306878,0.06254003,103180.0,103170.0,2.44583516]
[1750442307075,0.06254003,103180.0,103170.0,2.62583516]
[1750442307771,0.06254003,103180.0,103170.0,2.76583516]
[1750442307974,0.06254003,103180.0,103170.0,2.82374346]
[1750442308879,0.00517407,103180.0,103170.0,2.72722382]
[1750442309074,0.00517407,103180.0,103170.0,1.85007177]
[1750442309277,0.61716013,103180.0,103170.0,1.10464998]
[1750442309476,0.82686013,103180.0,103170.0,1.34302122]
[1750442309676,0.46606013,103180.0,103170.0,1.34262122]
[1750442309882,0.46606013,103180.0,103170.0,1.35300687]
[1750442310079,0.46606013,103180.0,103170.0,0.35156687]
[1750442310273,0.82686013,103180.0,103170.0,0.35116687]
[1750442310470,0.48355748,103180.0,103170.0,1.35300687]
[1750442310674,0.48355748,103180.0,103170.0,1.35296687]
[1750442311183,0.84435748,103180.0,103170.0,1.35296687]
[1750442311475,0.84435748,103180.0,103170.0,1.44296687]
[1750442312178,0.84435748,103180.0,103170.0,1.20869916]
[1750442312684,0.94125748,103180.0,103170.0,1.20869916]
[1750442312882,0.00517407,103180.0,103170.0,0.83606032]
[1750442313184,0.06254003,103180.0,103170.0,1.88537661]
[1750442313378,0.26224003,103180.0,103170.0,1.88577661]
[1750442313577,0.26224003,103180.0,103170.0,2.24577661]
[1750442313974,0.26224003,103180.0,103170.0,1.8479984]
[1750442314175,0.06254003,103180.0,103170.0,2.8493584]
[1750442315182,0.06254003,103180.0,103170.0,2.88797996]
[1750442315382,0.06254003,103180.0,103170.0,2.85900211]
[1750442315582,0.00517407,103180.0,103170.0,2.85900211]
[1750442315983,0.00517407,103180.0,103170.0,2.96230211]
[1750442316587,0.00517407,103180.0,103170.0,2.98161087]
[1750442317982,0.00517407,103180.0,103170.0,1.98025087]
[1750442318192,0.00517407,103180.0,103170.0,2.98145087]
[1750442318387,0.00517407,103180.0,103170.0,1.98025087]
[1750442318692,0.00517407,103180.0,103170.0,2.98141087]
[1750442318993,0.02262652,103180.0,103170.0,2.98141087]
[1750442319294,0.00517407,103180.0,103170.0,2.98133087]
[1750442319794,0.00517407,103180.0,103170.0,2.92340055]
[1750442319990,0.001,103190.0,103180.0,0.1938201]
[1750442320294,0.01742484,103210.0,103200.0,0.1937825]
[1750442320492,0.0747908,103210.0,103200.0,3.5901701]
[1750442320685,0.0747908,103210.0,103200.0,3.64923649]
[1750442320891,0.01742484,103210.0,103200.0,4.52179649]
[1750442321097,0.0747908,103210.0,103200.0,2.61766429]
[1750442321302,0.0747908,103210.0,103200.0,2.98703721]
[1750442321502,0.0747908,103210.0,103200.0,2.98703149]
[1750442321705,0.001,103220.0,103210.0,0.1937637]
[1750442321894,0.001,103220.0,103210.0,1.81262302]
[1750442322102,0.098,103250.0,103210.0,1.9677639]
[1750442322402,0.32272922,103250.0,103240.0,1.15808919]
[1750442322603,0.1946886,103250.0,103240.0,1.1945474]
[1750442322904,0.05836596,103250.0,103240.0,2.26132919]
[1750442323204,0.001,103250.0,103240.0,2.26132919]
[1750442323398,0.25205456,103250.0,103240.0,0.89968919]
[1750442323599,0.05836596,103250.0,103240.0,2.15888919]
[1750442323809,0.05836596,103250.0,103240.0,2.35698919]
[1750442324006,0.05836596,103250.0,103240.0,1.7554074]
[1750442324309,0.25305606,103250.0,103240.0,2.16080919]
[1750442324603,6e-08,103250.0,103240.0,3.1043529]
[1750442324804,6e-08,103250.0,103240.0,3.42461369]
[1750442325001,6e-08,103250.0,103240.0,1.40404672]
[1750442325307,6e-08,103250.0,103240.0,2.38610919]
[1750442325507,0.001,103280.0,103270.0,0.1936532]
[1750442325703,0.001,103280.0,103270.0,2.51171019]
[1750442325902,0.001,103280.0,103270.0,1.93942531]
[1750442326098,0.001,103280.0,103270.0,1.01053547]
[1750442326303,0.2052,103280.0,103270.0,1.01053547]
[1750442326505,0.3988345,103280.0,103270.0,1.01053547]
[1750442326802,0.3988345,103280.0,103260.0,0.6028784]
[1750442326803,0.1936532,103270.0,103260.0,0.6028784]
[1750442327002,0.31139327,103270.0,103260.0,0.3608]
[1750442327199,0.41289327,103270.0,103260.0,0.3608]
[1750442327404,0.41289327,103270.0,103260.0,0.3612]
[1750442327611,0.41289327,103270.0,103260.0,0.554872]
[1750442327908,0.41289327,103270.0,103260.0,0.3612]
[1750442328102,0.41289327,103270.0,103260.0,0.554872]
[1750442328406,0.41289327,103270.0,103260.0,0.3612]
[1750442328711,0.41389327,103270.0,103260.0,0.3608]
[1750442328911,0.41389327,103270.0,103260.0,0.554872]
[1750442329307,0.41389327,103270.0,103260.0,0.3612]
[1750442329509,0.001,103270.0,103260.0,1.5976665]
[1750442329804,0.001,103270.0,103260.0,2.9856465]
[1750442330009,0.00517407,103270.0,103260.0,2.38206471]
[1750442330199,0.00517407,103270.0,103260.0,2.9856465]
[1750442330406,0.19882727,103270.0,103260.0,1.95556471]
[1750442330703,0.40022727,103270.0,103260.0,1.7772665]
[1750442330903,0.39922727,103270.0,103260.0,2.17616471]
[1750442331108,0.39922727,103270.0,103260.0,2.7797465]
[1750442331703,0.39922727,103270.0,103260.0,2.7787465]
[1750442331908,0.39922727,103270.0,103260.0,1.98149271]
[1750442332109,0.50192727,103270.0,103260.0,1.95624451]
[1750442333014,0.50192717,103270.0,103260.0,2.5598263]
[1750442333214,0.30827407,103270.0,103260.0,1.95624451]
[1750442333411,0.50192717,103270.0,103260.0,1.95624451]
[1750442333717,0.50192717,103270.0,103260.0,1.59496451]
[1750442333899,0.50192717,103270.0,103260.0,0.45348451]
[1750442333900,0.86272717,103270.0,103260.0,0.45348451]
[1750442334105,0.86372717,103270.0,103260.0,0.45248451]
[1750442334300,0.55962717,103270.0,103260.0,0.45248451]
[1750442334611,0.19882717,103270.0,103260.0,1.23356451]
[1750442334803,0.49932717,103270.0,103260.0,0.45248451]
[1750442335414,0.49932717,103270.0,103260.0,0.45248461]
[1750442335607,0.86012717,103270.0,103260.0,0.27248461]
[1750442335807,0.86112717,103270.0,103260.0,0.27208461]
[1750442336006,0.86112717,103270.0,103260.0,0.27248461]
[1750442336208,0.50032717,103270.0,103260.0,0.63328461]
[1750442336409,0.50032717,103270.0,103260.0,0.5548719]
[1750442337106,0.50032717,103270.0,103260.0,1.15845369]
[1750442337302,0.50032717,103270.0,103260.0,0.5548719]
[1750442337817,0.50032717,103270.0,103260.0,1.16845369]
[1750442338502,0.50032717,103270.0,103260.0,1.36005369]
[1750442339619,0.39772717,103270.0,103260.0,1.36005369]
[1750442340006,0.39772717,103270.0,103260.0,0.7564719]
[1750442340209,0.19882717,103270.0,103260.0,1.36005369]
[1750442340811,0.00517407,103270.0,103260.0,1.55005369]
[1750442341004,0.00517407,103270.0,103260.0,2.54933369]
[1750442341206,0.00517407,103270.0,103260.0,2.79933369]
[1750442341410,0.00517407,103270.0,103260.0,2.99301369]
[1750442341610,2e-08,103290.0,103280.0,0.1936343]
[1750442341810,2e-08,103290.0,103280.0,2.46753609]
[1750442342008,2e-08,103290.0,103280.0,3.79935788]
[1750442342218,2e-08,103290.0,103280.0,4.12935788]
[1750442342415,0.4656314,103310.0,103300.0,0.1935968]
[1750442342617,0.4656314,103310.0,103300.0,2.29965859]
[1750442342618,0.0182584,103310.0,103300.0,2.29965859]
[1750442342821,0.0182584,103310.0,103300.0,2.39865859]
[1750442343215,0.0182584,103310.0,103300.0,1.0141968]
[1750442343522,0.0182584,103310.0,103300.0,2.3332768]
[1750442343721,0.2118364,103310.0,103300.0,2.61685859]
[1750442343916,0.2118364,103310.0,103300.0,1.0145968]
[1750442344112,0.0182584,103310.0,103300.0,2.61725859]
[1750442344323,0.0182584,103310.0,103300.0,2.0136768]
[1750442344625,0.0182584,103310.0,103300.0,2.61725859]
[1750442344917,0.0182584,103310.0,103300.0,2.71665859]
[1750442345314,0.02243247,103310.0,103300.0,2.71665859]
[1750442345514,0.21601047,103310.0,103300.0,2.1130768]
[1750442345711,0.02243247,103310.0,103300.0,2.71665859]
[1750442345916,0.21601047,103310.0,103300.0,1.71757859]
[1750442346116,0.21601047,103310.0,103300.0,1.94817859]
[1750442346419,0.02243247,103310.0,103300.0,2.3934368]
[1750442346625,0.02243247,103310.0,103300.0,3.09641859]
[1750442347223,0.1985,103330.0,103320.0,0.1935593]
[1750442347421,0.1985,103330.0,103320.0,2.29930109]
[1750442347623,0.1935406,103330.0,103320.0,2.59137659]
[1750442347926,0.30618045,103340.0,103330.0,0.1935406]
[1750442348118,0.30618045,103340.0,103330.0,1.35322239]
[1750442348321,0.50468045,103340.0,103330.0,0.9679206]
[1750442348618,0.50468045,103340.0,103330.0,1.57150239]
[1750442349019,0.11264655,103340.0,103330.0,1.57150239]
[1750442349219,0.01874655,103340.0,103330.0,1.57150239]
[1750442349416,0.01874655,103340.0,103330.0,1.56242576]
[1750442349616,0.001,103340.0,103330.0,1.56242576]
[1750442350026,0.1945218,103340.0,103330.0,1.56242576]
[1750442350323,0.001,103340.0,103330.0,1.56242576]
[1750442350627,0.001,103340.0,103330.0,1.34414576]
[1750442350819,0.1945218,103340.0,103330.0,2.34618576]
[1750442351128,0.1945218,103340.0,103330.0,0.64476397]
[1750442351328,0.3903218,103340.0,103330.0,1.54722397]
[1750442351518,0.3903218,103340.0,103330.0,0.54566397]
[1750442351825,0.3903218,103340.0,103330.0,2.15092576]
[1750442352019,0.001,103340.0,103330.0,2.14992576]
[1750442352226,0.001,103340.0,103330.0,1.74734397]
[1750442352426,0.1945218,103340.0,103330.0,2.35092576]
[1750442352821,0.1945218,103340.0,103330.0,1.35024576]
[1750442353021,0.1945218,103340.0,103330.0,2.35036576]
[1750442353323,0.1945218,103340.0,103330.0,2.34996576]
[1750442353629,0.1945218,103340.0,103330.0,2.35036576]
[1750442353926,0.1945218,103340.0,103330.0,2.34988576]
[1750442354127,0.1945218,103340.0,103330.0,2.34928576]
[1750442354329,0.1945218,103340.0,103330.0,1.35024576]
[1750442354530,0.001,103340.0,103330.0,2.34928576]
[1750442356131,0.1945218,103340.0,103330.0,2.34996576]
[1750442356322,0.001,103340.0,103330.0,2.35020576]
[1750442356522,0.1945218,103340.0,103330.0,2.35020576]
[1750442356722,0.001,103340.0,103330.0,2.35020576]
[1750442356925,0.1945218,103340.0,103330.0,2.34980576]
[1750442357124,0.001,103340.0,103330.0,2.34980576]
[1750442357728,0.001,103340.0,103330.0,2.07622397]
[1750442357930,0.001,103340.0,103330.0,2.67980576]
[1750442358622,0.001,103340.0,103330.0,2.87334976]
[1750442358825,0.001,103340.0,103330.0,2.27176797]
[1750442359131,0.001,103340.0,103330.0,2.97169922]
[1750442359636,0.00517407,103340.0,103330.0,2.97169922]
[1750442360332,0.3456356,103370.0,103360.0,0.1934846]
[1750442360529,0.1944659,103370.0,103360.0,2.54094639]
[1750442360723,0.001,103370.0,103360.0,2.54094639]
[1750442360924,0.001,103370.0,103360.0,2.73594639]
[1750442362526,0.001,103370.0,103360.0,3.09594639]
[1750442362732,0.001,103370.0,103360.0,3.05594639]
[1750442363328,0.001,103370.0,103360.0,1.1100846]
[1750442363527,0.81542508,103370.0,103360.0,0.7216]
[1750442363735,0.1935033,103350.0,103340.0,0.47585713]
[1750442363940,0.1935033,103350.0,103340.0,0.37735713]
[1750442364235,0.1935221,103340.0,103330.0,1.65116852]
[1750442364531,0.1935221,103340.0,103330.0,0.07638932]
[1750442364532,0.40549617,103340.0,103330.0,0.07638932]
[1750442364734,1.00907796,103340.0,103330.0,0.3608]
[1750442365041,0.1935595,103320.0,103310.0,0.3616]
[1750442365334,0.05721961,103370.0,103340.0,0.3608]
[1750442365540,0.1934483,103380.0,103360.0,1.32518179]
[1750442365724,0.2418116,103380.0,103370.0,0.3608]
[1750442366128,0.2418116,103380.0,103370.0,0.5542659]
[1750442366129,0.55749284,103380.0,103370.0,0.5542659]
[1750442366326,0.31568124,103380.0,103370.0,0.5546659]
[1750442366937,0.31568124,103380.0,103370.0,1.15824769]
[1750442367137,0.31568124,103380.0,103370.0,0.5546659]
[1750442367335,0.31568124,103380.0,103370.0,1.15824769]
[1750442367532,0.50912844,103380.0,103370.0,0.5546659]
[1750442367727,0.50912844,103380.0,103370.0,0.3612]
[1750442368135,0.50912844,103380.0,103370.0,0.2076]
[1750442368330,1.30618223,103380.0,103370.0,0.208]
[1750442368531,1.30618223,103380.0,103370.0,0.0004]
[1750442368735,0.0176324,103370.0,103360.0,0.6026486]
[1750442368937,0.52427954,103370.0,103360.0,0.6126486]
[1750442369334,0.52427954,103370.0,103360.0,1.21623039]
[1750442369526,0.33081364,103370.0,103360.0,1.21623039]
[1750442369732,0.52427954,103370.0,103360.0,1.21723039]
[1750442369938,0.33081364,103370.0,103360.0,1.21723039]
[1750442371945,0.33081364,103370.0,103360.0,2.01463039]
[1750442372140,0.13331364,103370.0,103360.0,2.32463039]
[1750442372445,0.13331364,103370.0,103360.0,2.20513039]
[1750442374746,0.13748771,103370.0,103360.0,2.20513039]
[1750442375146,0.23198771,103370.0,103360.0,2.20513039]
[1750442376040,0.23198771,103370.0,103360.0,2.20613039]
[1750442376649,0.23198771,103370.0,103360.0,1.6025486]
[1750442376847,0.23198771,103370.0,103360.0,1.59311208]
[1750442377150,0.23198771,103370.0,103360.0,2.19669387]
[1750442377448,0.13748771,103370.0,103360.0,2.19669387]
[1750442377650,0.13748771,103370.0,103360.0,2.42265387]
[1750442378745,0.42955361,103370.0,103360.0,2.05106987]
[1750442379048,0.52625361,103370.0,103360.0,1.34904808]
[1750442379242,0.33278771,103370.0,103360.0,1.34904808]
[1750442379437,0.31515531,103370.0,103360.0,1.95302987]
[1750442380346,0.50862121,103370.0,103360.0,1.34844808]
[1750442380546,0.50862121,103370.0,103360.0,0.55624808]
[1750442380753,0.50862121,103370.0,103360.0,1.34776808]
[1750442381051,0.31515531,103370.0,103360.0,1.34816808]
[1750442381351,0.50862121,103370.0,103360.0,1.34816808]
[1750442381548,0.50862121,103370.0,103360.0,0.55624808]
[1750442381848,0.50862121,103370.0,103360.0,0.36276348]
[1750442382049,1.305691,103370.0,103360.0,0.0114]
[1750442382249,0.1934846,103360.0,103350.0,1.45759639]
[1750442382552,0.49916584,103360.0,103350.0,0.67699639]
[1750442382946,0.49916584,103360.0,103350.0,1.46699639]
[1750442383151,0.30568124,103360.0,103350.0,2.07057818]
[1750442383540,0.49916584,103360.0,103350.0,2.02172258]
[1750442383753,0.49916584,103360.0,103350.0,0.3708]
[1750442384153,0.49916584,103360.0,103350.0,0.2035033]
[1750442384548,0.49916584,103360.0,103350.0,0.2039033]
[1750442384743,1.29625163,103360.0,103350.0,0.0104]
[1750442385454,1.29625163,103360.0,103350.0,0.2039033]
[1750442385649,0.69266984,103360.0,103350.0,0.2039033]
[1750442385849,0.69266984,103360.0,103350.0,0.0104]
[1750442386252,1.29625163,103360.0,103350.0,0.0004]
[1750442386451,1.29625163,103360.0,103350.0,0.3612]
[1750442386657,1.29625163,103360.0,103350.0,0.3608]
[1750442386852,0.69266984,103360.0,103350.0,0.5547033]
[1750442387155,0.49916584,103360.0,103350.0,0.5547033]
[1750442387959,1.29625163,103360.0,103350.0,0.3612]
[1750442388253,0.1935033,103350.0,103340.0,0.6510695]
[1750442388448,0.49788454,103350.0,103340.0,0.5643114]
[1750442388649,1.19576633,103350.0,103340.0,0.5643114]
[1750442388849,1.19576633,103350.0,103340.0,0.35136043]
[1750442389061,0.193522,103340.0,103330.0,0.603508]
[1750442389251,0.51524417,103340.0,103330.0,0.5643246]
[1750442389448,0.51524417,103340.0,103330.0,0.5547246]
[1750442389659,0.51524417,103340.0,103330.0,0.3608]
[1750442390050,0.51524417,103340.0,103330.0,0.3612]
[1750442390253,0.51524417,103340.0,103330.0,0.3632]
[1750442390454,0.51789401,103340.0,103330.0,0.3632]
[1750442390954,1.1214758,103340.0,103330.0,0.3628]
[1750442391152,0.49790324,103340.0,103330.0,0.3632]
[1750442391357,0.49790324,103340.0,103330.0,0.3628]
[1750442391559,0.49790324,103340.0,103330.0,0.3632]
[1750442392950,0.49790324,103340.0,103330.0,0.5567406]
[1750442393258,0.49790324,103340.0,103330.0,0.3632]
[1750442393853,0.51802597,103340.0,103330.0,0.3632]
[1750442394253,0.51802597,103340.0,103330.0,0.5567405]
[1750442394557,1.90396776,103340.0,103330.0,0.3632]
[1750442394954,1.30038597,103340.0,103330.0,0.3632]
[1750442395461,1.30038597,103340.0,103330.0,0.5567406]
[1750442395862,1.30038597,103340.0,103330.0,0.3632]
[1750442396055,1.30038597,103340.0,103330.0,0.5567406]
[1750442396455,1.28026324,103340.0,103330.0,0.5567406]
[1750442396764,1.28294324,103340.0,103330.0,0.5567406]
[1750442396959,0.49790324,103340.0,103330.0,0.5567406]
[1750442397156,0.30920324,103340.0,103330.0,1.71922239]
[1750442397460,0.30920354,103340.0,103330.0,2.45486849]
[1750442397659,0.30920354,103340.0,103330.0,1.3307704]
[1750442397850,0.30920354,103340.0,103330.0,1.93435219]
[1750442398762,0.30920354,103340.0,103330.0,1.3307704]
[1750442399257,0.1935223,103340.0,103330.0,1.88596859]
[1750442399451,0.30920354,103340.0,103330.0,1.2823868]
[1750442399656,0.30920354,103340.0,103330.0,1.2123868]
[1750442400260,0.30920354,103340.0,103330.0,1.2119868]
[1750442400461,0.30920354,103340.0,103330.0,0.9221]
[1750442400462,0.91278533,103340.0,103330.0,0.9221]
[1750442400659,0.91278533,103340.0,103330.0,0.7236]
[1750442400854,0.91278533,103340.0,103330.0,0.002]
[1750442400855,2.56156933,103340.0,103330.0,0.002]
[1750442401056,2.54236579,103340.0,103310.0,0.46106791]
[1750442401258,0.91282253,103320.0,103310.0,0.00176791]
[1750442401456,2.88092432,103320.0,103310.0,0.00096791]
[1750442401659,0.1935782,103310.0,103300.0,0.3608]
[1750442401862,0.60729153,103310.0,103300.0,0.3608]
[1750442402053,1.21087332,103310.0,103300.0,0.3612]
[1750442402364,1.21087332,103310.0,103300.0,0.3608]
[1750442402560,0.1935972,103300.0,103290.0,0.7480158]
[1750442402769,0.40161053,103300.0,103290.0,0.5544]
[1750442403457,0.40161053,103300.0,103290.0,0.7480159]
[1750442403664,0.150896,103310.0,103290.0,0.5548]
[1750442403865,0.1935784,103310.0,103300.0,0.7544972]
[1750442404063,0.1935784,103310.0,103300.0,0.9260972]
[1750442404366,0.30789173,103310.0,103300.0,0.9260972]